bitfinex/quotes_ETHUSD_20250220
["timestamp","ask_amount","ask_price","bid_price","bid_amount"]
[1740025412528,3.62465,2758.9,2758.3,0.8071]
[1740025412835,0.801837,2758.9,2758.3,4.4325]
[1740025413283,4.426527,2758.9,2757.9,3.62584]
[1740025413483,3.62476,2758.8,2758.1,3.62568]
[1740025413683,4.31959313,2758.8,2758.1,3.62559]
[1740025413916,4.31959313,2758.8,2758.2,3.62544]
[1740025414113,4.31959313,2758.8,2758.1,3.62567]
[1740025414327,3.62492,2758.7,2758.1,3.62567]
[1740025414530,3.62492,2758.7,2758.0,0.7861]
[1740025414740,3.62492,2758.7,2757.8,3.62599]
[1740025414741,4.41947131,2758.6,2757.9,3.90994]
[1740025414946,3.6253,2758.4,2757.8,3.62599]
[1740025415127,7.25066,2758.4,2757.7,4.4522]
[1740025415329,3.6253,2758.4,2757.7,0.8261]
[1740025415553,4.06693,2758.3,2757.7,0.8261]
[1740025415713,0.44143,2758.3,2757.7,3.62613]
[1740025416430,3.62529,2758.4,2757.7,3.62613]
[1740025416603,7.25067,2758.4,2757.7,3.62613]
[1740025417017,3.62548,2758.3,2757.6,3.62633]
[1740025417201,3.62548,2758.3,2757.5,4.45247]
[1740025417405,4.429457,2758.3,2757.5,4.45247]
[1740025417637,4.429457,2758.3,2757.7,3.6262]
[1740025418332,0.789,2758.5,2757.5,0.8261]
[1740025418535,0.789,2758.5,2757.9,3.62583]
[1740025419238,0.789,2758.5,2757.8,3.84805316]
[1740025419434,0.789,2758.5,2757.8,0.22199316]
[1740025419736,3.62552,2758.3,2757.8,0.22199316]
[1740025419949,0.725081,2758.2,2757.8,0.22199316]
[1740025420250,4.350641,2758.2,2757.8,0.22199316]
[1740025420543,0.725081,2758.2,2757.8,0.22199316]
[1740025420843,0.725081,2758.2,2757.6,3.62631]
[1740025421002,0.725081,2758.2,2757.6,7.25256]
[1740025421351,0.725081,2758.2,2757.7,3.6262]
[1740025421637,3.62529,2758.4,2757.6,3.89563169]
[1740025421940,0.789,2758.5,2757.9,3.62585]
[1740025422316,4.41419,2758.5,2757.9,3.62585]
[1740025422934,0.789,2758.5,2757.9,3.62585]
[1740025423120,0.789,2758.5,2757.9,7.25173]
[1740025423313,1.94950277,2758.5,2757.9,3.62585]
[1740025423715,1.94950277,2758.5,2757.9,7.25173]
[1740025423914,0.789,2758.5,2758.1,3.62568]
[1740025424233,0.789,2758.5,2757.9,3.62583]
[1740025424542,4.41422,2758.5,2757.7,3.62612]
[1740025424738,4.41422,2758.5,2757.7,3.6261]
[1740025424739,0.88337113,2758.4,2757.7,3.6261]
[1740025425038,4.50874113,2758.4,2757.7,3.6261]
[1740025425240,4.50874113,2758.4,2757.8,3.62607]
[1740025425537,0.88337113,2758.4,2757.9,3.62592]
[1740025425741,0.88337113,2758.4,2757.8,3.84832128]
[1740025425945,0.789,2758.5,2758.0,3.62571]
[1740025427253,4.41415,2758.5,2757.9,3.89558284]
[1740025427455,4.41415,2758.5,2758.1,0.26964284]
[1740025427666,0.789,2758.5,2758.1,0.26964284]
[1740025428720,0.789,2758.5,2758.2,3.62554]
[1740025429121,0.789,2758.5,2758.2,3.84790342]
[1740025429322,0.789,2758.5,2758.2,0.22236342]
[1740025430256,0.441404,2758.4,2758.2,0.22236342]
[1740025431157,0.441404,2758.4,2757.9,3.62588]
[1740025431362,0.441404,2758.4,2758.0,0.33744702]
[1740025432364,0.441404,2758.4,2758.1,0.22256767]
[1740025434265,4.066694,2758.4,2758.2,0.22256767]
[1740025434464,4.066694,2758.4,2758.2,0.49255954]
[1740025434766,0.4855694,2758.3,2758.2,0.49255954]
[1740025434975,0.441404,2758.4,2758.2,0.49255954]
[1740025435978,0.441404,2758.4,2758.2,0.26999187]
[1740025436148,0.441404,2758.4,2757.9,3.62584]
[1740025436833,0.441404,2758.4,2757.8,0.35624717]
[1740025437037,0.441404,2758.4,2757.9,3.62592]
[1740025437290,0.4855574,2758.3,2757.9,3.62589]
[1740025437439,0.4855574,2758.3,2757.9,4.20484293]
[1740025437943,0.4855574,2758.3,2758.0,0.27016344]
[1740025439370,4.41424,2758.5,2758.1,0.27016344]
[1740025439566,0.789,2758.5,2758.1,0.4928692]
[1740025439768,3.62529,2758.4,2758.1,0.4928692]
[1740025440677,3.62542,2758.3,2758.1,0.4928692]
[1740025440980,3.62542,2758.3,2758.1,0.22270576]
[1740025441193,4.808092,2758.2,2757.5,3.90439]
[1740025441551,0.82,2757.9,2757.4,0.37065603]
[1740025441946,3.5319155,2757.9,2757.4,3.99724603]
[1740025442463,3.5319155,2757.9,2757.5,0.2703365]
[1740025442639,0.35319155,2757.8,2757.5,0.2703365]
[1740025443179,10.146262,2758.2,2757.5,4.95031532]
[1740025443680,3.62578,2758.1,2757.5,0.49315532]
[1740025443867,3.62568,2758.1,2757.5,0.49315532]
[1740025444265,10.146262,2758.2,2757.5,0.49315532]
[1740025444460,3.62582,2758.0,2757.5,0.49315532]
[1740025444798,0.7681,2757.9,2757.6,0.49315532]
[1740025444944,4.39407,2757.9,2757.6,0.49315532]
[1740025445148,0.7681,2757.9,2757.6,0.49315532]
[1740025445446,0.439392,2757.8,2757.6,0.49315532]
[1740025445651,0.7681,2757.9,2757.6,0.22281882]
[1740025446183,4.39407,2757.9,2757.3,0.35652393]
[1740025446881,0.7681,2757.9,2757.3,3.98325393]
[1740025447185,0.7681,2757.9,2757.4,3.89672867]
[1740025447381,1.94271617,2757.9,2757.4,7.74591928]
[1740025447555,0.7681,2757.9,2757.4,7.74586928]
[1740025448178,0.7681,2757.9,2757.4,4.11933928]
[1740025448343,0.7681,2757.9,2757.5,3.62642]
[1740025448543,1.0146262,2758.1,2757.6,3.62631]
[1740025448782,1.0146262,2758.1,2757.5,0.27014867]
[1740025448982,1.08445837,2758.0,2757.5,3.89660867]
[1740025449285,1.0146262,2758.1,2757.6,3.62633]
[1740025450390,1.0146262,2758.1,2757.6,3.62627]
[1740025450584,1.0146262,2758.1,2757.5,4.39376]
[1740025451086,1.0146262,2758.1,2757.6,3.62632]
[1740025451589,1.0146262,2758.1,2757.6,3.84889648]
[1740025451892,1.0146262,2758.1,2757.6,3.84613875]
[1740025452187,1.0146262,2758.1,2757.6,4.11615392]
[1740025452395,9.83113,2758.2,2757.7,3.62619]
[1740025452689,6.2055,2758.2,2757.7,7.25232]
[1740025452886,6.2055,2758.2,2757.7,3.62613]
[1740025454277,9.83112,2758.2,2757.7,3.62613]
[1740025454593,9.83112,2758.2,2757.7,7.25223]
[1740025454594,7.551146,2758.2,2757.7,7.25223]
[1740025454793,7.551146,2758.2,2757.7,3.6261]
[1740025454962,6.2055,2758.2,2757.8,3.62242381]
[1740025455396,6.2055,2758.2,2757.7,3.62619]
[1740025455558,6.2055,2758.2,2757.8,3.62605]
[1740025456454,9.83107,2758.2,2757.7,3.62619]
[1740025456673,6.2055,2758.2,2757.7,3.62619]
[1740025458120,6.2055,2758.2,2757.5,4.39374]
[1740025458272,3.6257,2758.1,2757.5,4.39369]
[1740025458795,3.6259,2758.0,2757.3,3.62663]
[1740025458995,3.62596,2757.9,2757.3,3.90163]
[1740025459203,0.8289,2757.8,2757.2,1.0495]
[1740025459500,0.8289,2757.8,2757.6,0.22231327]
[1740025459794,0.8289,2757.8,2757.6,0.21841856]
[1740025460803,4.45502,2757.8,2757.6,0.21841856]
[1740025460985,4.43431,2757.7,2757.6,0.21841856]
[1740025461300,3.62621,2757.7,2757.6,0.21629606]
[1740025461865,3.62621,2757.7,2757.0,4.79910684]
[1740025462060,3.62637,2757.6,2757.0,3.98290684]
[1740025462367,4.40176,2757.6,2757.0,0.35590684]
[1740025462575,3.62671,2757.4,2757.0,0.35590684]
[1740025462806,0.7604,2757.2,2757.0,0.35590684]
[1740025463162,5.830176,2757.5,2757.0,0.35590684]
[1740025463501,5.830176,2757.5,2757.1,3.62699]
[1740025463702,5.830176,2757.5,2757.1,3.62298288]
[1740025464096,5.830176,2757.5,2757.0,3.62704]
[1740025465114,1.0216976,2757.4,2756.8,3.9023]
[1740025465700,1.0216976,2757.4,2756.8,7.52962]
[1740025466185,1.0216976,2757.4,2756.9,3.62722]
[1740025467198,4.6483176,2757.4,2756.9,3.62722]
[1740025467393,1.77315836,2757.3,2756.8,3.90235]
[1740025468221,1.77315836,2757.3,2756.9,3.62725]
[1740025468586,5.39,2757.5,2757.0,3.62712]
[1740025469808,0.7794,2757.3,2756.7,3.62746]
[1740025470006,0.7794,2757.3,2756.6,0.7616]
[1740025470325,0.7794,2757.3,2756.7,3.62742]
[1740025470682,4.40614,2757.3,2756.7,3.62742]
[1740025471010,4.40614,2757.3,2756.8,3.62739]
[1740025471207,0.7794,2757.3,2756.8,3.62739]
[1740025471410,0.7794,2757.3,2756.9,3.62724]
[1740025472017,0.7794,2757.3,2756.8,3.62738]
[1740025472525,0.7794,2757.3,2756.7,3.62742]
[1740025472821,0.7794,2757.3,2756.9,3.62724]
[1740025473002,0.7794,2757.3,2756.8,3.62739]
[1740025473726,0.7794,2757.3,2756.7,3.62742]
[1740025474027,0.7794,2757.3,2756.8,3.62731]
[1740025475724,0.7794,2757.3,2756.8,3.62729]
[1740025476813,1.58265,2757.3,2756.8,3.62729]
[1740025477527,1.58265,2757.3,2756.7,3.62749]
[1740025477720,5.20947,2757.3,2756.7,3.62751]
[1740025478215,1.58265,2757.3,2756.5,3.90069]
[1740025478595,5.20939,2757.3,2756.7,7.25495]
[1740025479008,5.20939,2757.3,2756.7,3.62745]
[1740025479928,8.83623,2757.3,2756.7,3.62745]
[1740025480236,3.62705,2757.1,2756.5,3.62767]
[1740025480399,0.8205,2757.0,2756.5,3.62767]
[1740025480724,0.8205,2757.0,2756.3,4.25562862]
[1740025480725,4.9445189,2757.0,2756.3,4.25562862]
[1740025480929,4.9445189,2757.0,2756.3,3.90096]
[1740025480930,10.3345189,2757.0,2756.3,3.90096]
[1740025481103,6.7073489,2757.0,2756.4,3.62791]
[1740025481305,6.7073489,2757.0,2756.5,3.62769]
[1740025481832,6.2105,2757.0,2756.7,3.62748]
[1740025482209,6.2105,2757.0,2756.5,3.62769]
[1740025482411,6.2105,2757.0,2756.7,3.62752]
[1740025483107,6.2105,2757.0,2756.7,3.62746]
[1740025483719,6.2105,2757.0,2756.6,0.22163626]
[1740025483922,6.2105,2757.0,2756.7,3.6274]
[1740025484108,6.2105,2757.0,2756.3,3.62804]
[1740025484325,0.8205,2757.0,2756.7,7.25483]
[1740025484526,0.8205,2757.0,2756.7,3.62741]
[1740025484834,4.44434,2757.3,2756.3,4.12111559]
[1740025485002,4.44434,2757.3,2756.7,3.62744]
[1740025486044,4.44434,2757.3,2756.7,7.2549]
[1740025486235,5.790431,2757.3,2756.7,7.2549]
[1740025487035,5.790431,2757.3,2756.7,3.62744]
[1740025487343,5.790431,2757.3,2756.8,3.62739]
[1740025488646,2.163591,2757.3,2756.8,3.62731]
[1740025489114,5.790341,2757.3,2756.8,3.62731]
[1740025489315,1.1180341,2757.2,2756.8,3.62731]
[1740025489754,1.1180341,2757.2,2756.7,3.62751]
[1740025490214,1.1180341,2757.2,2756.8,3.62739]
[1740025490416,5.790341,2757.3,2756.8,3.62739]
[1740025490749,2.163591,2757.3,2756.8,3.62739]
[1740025490949,2.163591,2757.3,2756.8,3.8495664]
[1740025491354,5.790331,2757.3,2756.8,3.8495664]
[1740025491645,2.163591,2757.3,2756.8,3.8495664]
[1740025491816,0.8175,2757.3,2757.1,3.62687]
[1740025492017,0.7785,2757.6,2757.1,3.62687]
[1740025493353,0.7785,2757.6,2757.3,3.62667]
[1740025493858,0.7735,2757.9,2757.5,3.62639]
[1740025494359,0.7735,2757.9,2757.4,3.62659]
[1740025494853,4.39947,2757.9,2757.3,3.62666]
[1740025495053,1.78506615,2757.9,2757.2,4.39937]
[1740025495260,1.01156615,2757.9,2757.4,3.62653]
[1740025495931,0.32619155,2758.1,2757.5,3.62635]
[1740025496137,3.95187155,2758.1,2757.5,3.62635]
[1740025496538,4.38332,2758.0,2757.4,3.62653]
[1740025496862,4.38332,2758.0,2757.4,3.6266]
[1740025497065,0.47095116,2757.9,2757.4,3.6266]
[1740025497722,0.47095116,2757.9,2757.5,3.62646]
[1740025497928,0.7575,2758.0,2757.5,3.62639]
[1740025498261,0.7575,2758.0,2757.6,3.62632]
[1740025498463,0.7575,2758.0,2757.5,3.62639]
[1740025498664,4.38333,2758.0,2757.5,3.62639]
[1740025499660,4.38333,2758.0,2757.3,3.62664]
[1740025499868,4.09696216,2757.9,2757.3,3.62664]
[1740025500029,4.09696216,2757.9,2757.0,4.72930666]
[1740025500030,0.8271,2757.8,2757.0,4.72930666]
[1740025500365,3.62667,2757.4,2756.9,0.27]
[1740025500531,0.445377,2757.3,2756.9,0.27]
[1740025500734,4.072217,2757.3,2756.7,3.62745]
[1740025500932,0.445377,2757.3,2756.7,3.62745]
[1740025501161,3.62667,2757.4,2756.9,3.62725]
[1740025501369,7.25335,2757.4,2756.7,3.62746]
[1740025501544,3.62675,2757.3,2756.7,3.62746]
[1740025501875,3.62634,2757.6,2757.0,3.62713]
[1740025502067,3.62634,2757.6,2756.9,3.62726]
[1740025502240,4.41161,2757.4,2756.8,0.49167032]
[1740025502662,4.41161,2757.4,2756.9,3.62718]
[1740025502663,0.785,2757.4,2756.9,3.62718]
[1740025502861,0.785,2757.4,2757.0,3.62708]
[1740025503061,0.785,2757.4,2757.2,3.6268]
[1740025503462,4.38121,2757.7,2757.1,3.62687]
[1740025503659,0.755,2757.7,2757.2,3.62679]
[1740025503865,0.755,2757.7,2757.3,3.62672]
[1740025504066,1.77920022,2757.7,2757.3,3.62672]
[1740025504439,5.40541022,2757.7,2757.2,3.62685]
[1740025504948,3.62635,2757.6,2757.0,3.627]
[1740025505155,3.62635,2757.6,2757.0,3.6271]
[1740025505476,3.62635,2757.6,2756.9,4.45266]
[1740025505779,4.70590502,2757.6,2757.1,3.62698]
[1740025505973,1.07955502,2757.6,2757.2,3.62686]
[1740025506373,1.77920022,2757.7,2757.2,3.62675]
[1740025506578,1.77920022,2757.7,2757.1,3.62698]
[1740025506579,1.77920022,2757.7,2757.3,3.62672]
[1740025506946,5.40541022,2757.7,2757.1,3.62692]
[1740025507148,1.77920022,2757.7,2757.3,3.62673]
[1740025507572,0.71692002,2757.6,2757.0,3.62707]
[1740025507882,4.34326002,2757.6,2757.1,3.62692]
[1740025508243,0.71692002,2757.6,2756.9,0.8255]
[1740025508447,0.8083,2757.3,2756.6,4.39233]
[1740025508647,0.443492,2757.2,2756.7,3.62744]
[1740025508978,0.8083,2757.3,2756.7,3.62744]
[1740025509345,4.43505,2757.3,2756.7,3.62744]
[1740025509547,0.8083,2757.3,2756.7,3.6275]
[1740025509773,3.62688,2757.2,2756.7,3.6275]
[1740025510475,0.8083,2757.3,2756.5,3.62769]
[1740025510649,3.62707,2757.1,2756.5,3.98215579]
[1740025511184,0.8083,2757.3,2757.0,3.6271]
[1740025511486,5.39,2757.5,2757.0,0.8276]
[1740025511682,5.39,2757.5,2757.3,3.62666]
[1740025511883,0.8059,2757.9,2757.2,3.62686]
[1740025512181,0.8059,2757.9,2757.6,3.62627]
[1740025512385,9.01558,2758.2,2757.8,3.62599]
[1740025512386,5.39,2758.2,2757.8,3.62599]
[1740025512594,6.1959,2758.3,2757.8,3.62599]
[1740025512773,6.81549,2758.3,2757.8,3.62599]
[1740025512958,6.81549,2758.3,2757.9,3.62593]
[1740025513159,6.81549,2758.3,2758.1,3.62567]
[1740025513361,5.39,2758.3,2757.9,3.62585]
[1740025513989,5.39,2758.3,2757.7,3.62611]
[1740025514287,5.39,2758.3,2757.8,3.62602]
[1740025514485,0.8062,2758.5,2757.5,0.826]
[1740025514685,0.8062,2758.5,2758.1,3.62567]
[1740025515058,0.8062,2758.5,2758.2,3.62543]
[1740025515261,6.183,2758.9,2758.3,3.62535]
[1740025515570,6.183,2758.9,2758.0,1.0966]
[1740025515571,0.793,2758.9,2758.7,3.62479]
[1740025515749,5.39,2759.3,2759.1,3.62431]
[1740025515955,6.183,2759.7,2759.1,3.62431]
[1740025516696,9.80662,2759.7,2758.9,3.62452]
[1740025516896,3.62372,2759.6,2758.9,7.24907]
[1740025517199,1.343034,2759.6,2759.1,3.62428]
[1740025517355,6.183,2759.7,2759.1,3.62428]
[1740025517896,9.80659,2759.7,2759.0,3.6244]
[1740025518054,3.62374,2759.6,2759.0,3.6244]
[1740025518455,3.62374,2759.6,2758.8,4.6472]
[1740025518752,3.62423,2759.2,2758.7,0.272]
[1740025519487,0.7638,2759.3,2758.7,3.89678]
[1740025519868,6.1538,2759.3,2758.7,3.89678]
[1740025520070,9.77791,2759.3,2758.7,0.272]
[1740025520281,6.1538,2759.3,2758.7,0.272]
[1740025520481,6.1538,2759.3,2758.8,3.62468]
[1740025520693,6.1538,2759.3,2758.7,3.89688]
[1740025521293,6.1538,2759.3,2758.7,1.024183]
[1740025521497,6.1538,2759.3,2758.8,3.62465]
[1740025521679,5.39,2759.3,2759.0,3.62447]
[1740025521882,5.39,2759.3,2759.0,3.62442]
[1740025523397,1.3951,2759.6,2759.0,3.62442]
[1740025523597,1.3951,2759.6,2759.2,3.62414]
[1740025523900,0.7828,2759.9,2759.3,3.6241]
[1740025524097,0.7828,2759.9,2759.1,3.62429]
[1740025524399,3.62368,2759.7,2759.0,3.62438]
[1740025524605,3.62355,2759.8,2759.0,3.62438]
[1740025524896,9.16025255,2759.8,2759.1,3.62425]
[1740025525105,3.62358,2759.7,2759.1,3.62434]
[1740025525873,3.62358,2759.7,2759.1,3.62435]
[1740025526798,5.53670255,2759.8,2759.2,3.62416]
[1740025527191,9.16022255,2759.8,2759.2,3.62416]
[1740025527506,5.53661255,2759.8,2759.2,3.62416]
[1740025527702,5.53661255,2759.8,2759.0,7.24884]
[1740025527882,0.63194126,2759.7,2759.1,3.62435]
[1740025528904,0.63194126,2759.7,2759.0,3.62442]
[1740025529108,4.25559126,2759.7,2759.1,3.62431]
[1740025533906,4.25559126,2759.7,2759.0,3.62442]
[1740025534113,4.25559126,2759.7,2759.2,3.62422]
[1740025536011,3.62346,2759.8,2759.2,3.62422]
[1740025536381,3.62359,2759.7,2759.2,7.24838]
[1740025536581,3.62359,2759.7,2759.2,3.62416]
[1740025536780,3.62359,2759.7,2759.2,3.62415]
[1740025537590,3.62359,2759.7,2759.3,3.62404]
[1740025537981,3.62359,2759.7,2758.8,0.7852]
[1740025538206,3.62379,2759.6,2759.0,3.62445]
[1740025538414,3.62379,2759.6,2759.1,3.62429]
[1740025539220,3.62359,2759.7,2759.1,3.62437]
[1740025539424,3.62359,2759.7,2759.2,3.62419]
[1740025539594,3.6238,2759.6,2759.1,7.24867]
[1740025539797,3.6238,2759.6,2759.1,3.6243]
[1740025540009,3.62404,2759.4,2758.8,3.89376]
[1740025540214,0.7631,2759.5,2758.9,3.62451]
[1740025540729,4.38699,2759.5,2759.0,3.62444]
[1740025540913,4.38699,2759.5,2758.9,3.62451]
[1740025541315,4.38699,2759.5,2758.9,7.24907]
[1740025541610,3.62404,2759.4,2758.8,0.269]
[1740025541937,3.62397,2759.4,2758.8,3.8937]
[1740025542135,7.24803,2759.4,2758.8,3.8937]
[1740025542302,3.6241,2759.3,2758.8,3.8937]
[1740025542502,3.6241,2759.3,2758.8,4.11435729]
[1740025543037,5.06878549,2759.4,2758.9,3.62462]
[1740025545640,8.69283549,2759.4,2758.9,3.62462]
[1740025546155,8.69283549,2759.4,2759.0,0.22147897]
[1740025546326,5.06878549,2759.4,2759.0,0.49164014]
[1740025546526,8.69286549,2759.4,2759.0,0.49164014]
[1740025546930,0.7821,2759.2,2759.0,0.49164014]
[1740025547135,4.40642,2759.2,2759.0,0.49164014]
[1740025547440,0.7821,2759.2,2759.0,0.49164014]
[1740025547650,0.7821,2759.2,2759.0,0.27016117]
[1740025547939,0.7821,2759.2,2758.8,3.89371]
[1740025548345,0.7821,2759.2,2758.8,3.62471]
[1740025548840,0.7821,2759.2,2758.9,0.22146224]
[1740025549947,0.7821,2759.2,2758.9,0.49160504]
[1740025550124,4.40643,2759.2,2758.9,0.49160504]
[1740025550533,0.7821,2759.2,2758.9,0.49160504]
[1740025550733,0.7821,2759.2,2758.9,0.2701428]
[1740025551133,0.7821,2759.2,2758.7,3.62477]
[1740025551314,3.6245,2759.0,2758.5,3.62504]
[1740025551642,3.6245,2759.0,2758.5,7.25014]
[1740025551941,3.6245,2759.0,2758.5,3.62504]
[1740025552335,3.62438,2759.1,2758.5,7.25013]
[1740025552733,3.62438,2759.1,2758.6,0.22153366]
[1740025552925,3.62438,2759.1,2758.6,0.4917621]
[1740025553447,3.62438,2759.1,2758.6,4.1167021]
[1740025553941,3.62438,2759.1,2758.6,0.4917621]
[1740025554111,3.62438,2759.1,2758.7,0.22153366]
[1740025554443,3.62438,2759.1,2758.7,0.4917621]
[1740025555342,0.7821,2759.2,2758.7,0.4917621]
[1740025555530,3.62444,2759.1,2758.7,0.4917621]
[1740025555708,3.62444,2759.1,2758.6,3.62502]
[1740025555911,3.62444,2759.1,2758.4,3.89327]
[1740025556214,3.62444,2759.1,2758.6,3.62499]
[1740025556736,0.9010356,2759.1,2758.4,0.268]
[1740025556943,0.7588,2758.8,2758.3,6.987885]
[1740025557144,0.7588,2758.8,2758.2,3.62542]
[1740025557311,3.62501,2758.7,2758.1,3.89266]
[1740025557517,3.62501,2758.7,2758.1,3.89261]
[1740025557750,3.625,2758.7,2758.0,3.89275]
[1740025557945,0.7588,2758.8,2758.1,3.62567]
[1740025557946,3.62506,2758.6,2758.1,3.62567]
[1740025558117,3.62493,2758.7,2758.1,7.25128]
[1740025558757,3.62493,2758.7,2758.1,3.89571248]
[1740025559256,3.62493,2758.7,2758.2,0.22076385]
[1740025560356,3.62493,2758.7,2758.2,3.84629385]
[1740025560650,3.62493,2758.7,2758.2,3.62553]
[1740025561552,9.01493,2758.7,2758.2,3.62553]
[1740025564653,3.62503,2758.6,2758.1,3.62568]
[1740025564857,1.339872,2758.6,2757.9,0.7529]
[1740025565055,0.8238,2758.5,2758.1,3.62561]
[1740025565358,6.1404,2758.7,2758.2,3.62553]
[1740025565716,9.76537,2758.7,2758.1,3.62561]
[1740025565923,3.62508,2758.6,2758.1,3.62561]
[1740025566193,3.62508,2758.6,2758.1,7.25123]
[1740025566619,6.1404,2758.7,2758.4,3.62522]
[1740025566824,5.39,2758.7,2758.4,3.62522]
[1740025567064,3.62503,2758.6,2758.1,4.425983]
[1740025567221,0.7504,2758.5,2758.0,4.41941]
[1740025567655,4.37561,2758.5,2757.6,0.7936]
[1740025567842,0.7504,2758.2,2757.6,4.68587]
[1740025568043,4.37596,2758.2,2757.6,4.68587]
[1740025568243,4.37596,2758.2,2757.6,3.89227]
[1740025568435,4.37596,2758.2,2757.6,3.62627]
[1740025568638,5.39,2758.7,2758.1,3.62566]
[1740025568839,6.00404,2758.7,2758.1,3.62566]
[1740025569039,6.00404,2758.7,2758.2,3.62554]
[1740025569238,9.62899,2758.7,2758.1,3.62566]
[1740025569839,3.62503,2758.6,2758.1,3.62566]
[1740025570052,9.62898,2758.7,2758.1,3.62566]
[1740025570255,5.39,2758.7,2758.3,3.62535]
[1740025570640,5.39,2758.7,2758.2,0.789]
[1740025570641,5.39,2758.7,2758.2,4.41454]
[1740025571042,5.39,2758.7,2758.3,3.62531]
[1740025571646,5.39,2758.7,2758.2,4.41454]
[1740025572050,9.0149,2758.7,2758.2,3.62554]
[1740025572254,3.62506,2758.6,2758.0,4.40134]
[1740025572649,3.62506,2758.6,2758.0,3.62574]
[1740025573266,3.62506,2758.6,2758.1,3.62566]
[1740025573766,5.39,2758.7,2758.2,3.62549]
[1740025574066,5.39,2758.7,2758.2,3.988039]
[1740025574362,9.01495,2758.7,2758.2,4.770499]
[1740025574874,9.01495,2758.7,2758.2,4.40795]
[1740025575670,9.01495,2758.7,2758.2,0.7825]
[1740025575875,3.62504,2758.6,2758.1,3.62568]
[1740025576175,3.62504,2758.6,2757.9,0.8267]
[1740025576176,0.757,2758.4,2757.9,3.62594]
[1740025576740,3.6255,2758.3,2757.6,3.97931368]
[1740025576943,3.6255,2758.3,2757.6,0.35306368]
[1740025577149,3.62568,2758.1,2757.6,0.35306368]
[1740025577860,3.62568,2758.1,2757.5,3.62639]
[1740025578062,3.62568,2758.1,2757.4,9.1725]
[1740025578269,4.38255,2758.2,2757.6,7.25252]
[1740025578488,0.757,2758.2,2757.7,3.62612]
[1740025579269,9.77256,2758.2,2757.7,3.62612]
[1740025580086,3.62569,2758.1,2757.6,3.62633]
[1740025581367,3.62569,2758.1,2757.6,3.62625]
[1740025583397,3.62569,2758.1,2757.4,3.62652]
[1740025583596,7.486806,2758.2,2757.1,0.7562]
[1740025583597,0.8167,2757.9,2757.1,0.7562]
[1740025583899,3.62608,2757.8,2757.3,3.6267]
[1740025584296,3.62608,2757.8,2757.3,3.62673]
[1740025584487,9.83265,2757.9,2757.3,3.62673]
[1740025584689,10.22350352,2757.9,2757.3,3.62673]
[1740025588004,10.22350352,2757.9,2757.3,3.62665]
[1740025588400,10.22350352,2757.9,2757.2,3.62686]
[1740025588571,10.22350352,2757.9,2757.3,3.62667]
[1740025589106,10.22350352,2757.9,2757.3,3.89662354]
[1740025589471,10.22350352,2757.9,2757.4,3.6266]
[1740025589902,6.2067,2757.9,2757.4,7.25309]
[1740025590105,5.39,2757.9,2757.6,3.62626]
[1740025590308,5.39,2757.9,2757.7,3.62619]
[1740025590510,0.7957,2758.1,2757.8,3.62607]
[1740025590893,6.1526,2758.4,2757.8,0.362607]
[1740025591091,9.77795,2758.4,2757.8,3.62606]
[1740025591413,6.1526,2758.4,2757.9,3.62593]
[1740025591594,9.77795,2758.4,2757.8,3.62606]
[1740025591796,13.40337,2758.4,2757.8,3.62606]
[1740025592204,3.62543,2758.3,2757.6,3.62621]
[1740025592395,3.62543,2758.3,2757.6,4.064011]
[1740025592586,3.62543,2758.3,2757.7,3.6262]
[1740025592986,9.77789,2758.4,2757.8,3.62605]
[1740025593189,3.62548,2758.3,2757.8,3.62605]
[1740025593571,3.62548,2758.3,2757.8,3.62601]
[1740025593905,9.7779,2758.4,2757.8,3.62599]
[1740025594110,11.118215,2758.4,2757.8,3.62599]
[1740025594315,6.1526,2758.4,2757.9,0.8096]
[1740025594510,6.1526,2758.4,2758.0,3.62579]
[1740025594710,0.8204,2758.8,2758.1,3.62568]
[1740025594897,3.62496,2758.7,2758.1,3.62568]
[1740025595101,3.0,2758.6,2758.1,7.25128]
[1740025595607,0.8204,2758.8,2758.4,3.62522]
[1740025596513,0.8328,2759.1,2758.5,0.7677]
[1740025596702,4.45724,2759.1,2758.4,3.6252]
[1740025596900,0.8328,2759.1,2758.5,3.62503]
[1740025597211,0.8328,2759.1,2758.2,0.7677]
[1740025597212,0.8328,2759.1,2758.3,0.7677]
[1740025597510,9.01406,2759.4,2758.8,3.62475]
[1740025597701,4.42851,2759.3,2758.7,3.62488]
[1740025597903,5.329916,2759.3,2758.7,3.62488]
[1740025598994,3.62424,2759.2,2758.4,3.62519]
[1740025599310,3.62424,2759.2,2758.5,3.62507]
[1740025599493,3.62438,2759.1,2758.5,3.62507]
[1740025600183,3.62451,2759.0,2758.4,3.62528]
[1740025600808,3.52371,2759.0,2758.4,3.62528]
[1740025603317,0.8044,2759.3,2758.5,3.62513]
[1740025603617,3.62423,2759.2,2758.6,3.62492]
[1740025604215,3.62423,2759.2,2758.6,4.349925]
[1740025604518,3.62438,2759.1,2758.6,0.725005]
[1740025604723,3.62451,2759.0,2758.5,3.62513]
[1740025605221,3.62423,2759.2,2758.6,3.62496]
[1740025605417,3.62423,2759.2,2758.7,3.62482]
[1740025606092,3.62438,2759.1,2758.4,7.25041]
[1740025606297,3.62438,2759.1,2758.4,3.62518]
[1740025606516,3.62438,2759.1,2758.5,3.62515]
[1740025606682,3.62438,2759.1,2758.4,7.51637]
[1740025606887,3.62438,2759.1,2758.5,4.453527]
[1740025607916,0.8044,2759.3,2758.5,0.828407]
[1740025608118,0.821,2758.9,2758.4,3.89117]
[1740025608321,0.821,2758.9,2758.4,0.266]